bitfinex-derivatives/quotes_BTCF0:USTF0_20250527
["timestamp","ask_amount","ask_price","bid_price","bid_amount"]
[1748355147993,0.1465,110250.0,110240.0,0.1813364]
[1748355148181,0.2165,110250.0,110240.0,0.86563271]
[1748355148386,0.2165,110250.0,110240.0,1.08657447]
[1748355148586,0.2165,110250.0,110240.0,1.1000357]
[1748355148792,0.3978199,110250.0,110240.0,1.1000357]
[1748355149303,1.0186199,110250.0,110240.0,0.32098536]
[1748355149523,0.6588199,110250.0,110240.0,0.29665816]
[1748355149695,1.0196199,110250.0,110240.0,0.3991858]
[1748355149995,1.4564999,110250.0,110240.0,0.34748699]
[1748355150595,1.4564999,110250.0,110240.0,0.05807059]
[1748355150894,1.7453959,110250.0,110240.0,0.00542756]
[1748355151091,0.1813364,110240.0,110230.0,0.12193503]
[1748355151298,1.3055244,110240.0,110230.0,0.12193503]
[1748355151484,1.1990524,110240.0,110230.0,0.12193503]
[1748355151991,1.6462404,110240.0,110230.0,0.11469327]
[1748355152791,1.6462404,110240.0,110230.0,0.1038273]
[1748355152993,1.1990524,110240.0,110230.0,0.2851801]
[1748355153296,1.6358924,110240.0,110230.0,0.2851801]
[1748355153594,1.6360124,110240.0,110230.0,0.1038273]
[1748355153790,1.6360124,110240.0,110230.0,0.2851801]
[1748355153992,1.6370124,110240.0,110230.0,0.2851801]
[1748355154188,1.16770634,110240.0,110230.0,0.2851801]
[1748355154491,1.60438634,110240.0,110230.0,0.2851801]
[1748355154796,1.60438634,110240.0,110230.0,0.18148909]
[1748355154797,1.60892865,110240.0,110230.0,0.18148909]
[1748355156187,0.55619225,110240.0,110230.0,0.18148909]
[1748355156492,1.11795861,110240.0,110230.0,0.59623226]
[1748355156686,1.11807861,110240.0,110230.0,0.59623226]
[1748355156891,1.11807861,110240.0,110230.0,0.40205143]
[1748355157497,1.11707861,110240.0,110230.0,0.40205143]
[1748355157994,0.93574231,110240.0,110230.0,0.59623226]
[1748355158393,1.11707861,110240.0,110230.0,0.59623226]
[1748355158693,1.11707861,110240.0,110230.0,0.40205143]
[1748355159001,0.92507861,110240.0,110230.0,0.40205143]
[1748355159891,0.74374231,110240.0,110230.0,0.40205143]
[1748355160093,0.16454231,110240.0,110230.0,0.95703226]
[1748355160298,0.00454231,110240.0,110230.0,0.95703226]
[1748355160593,0.00454231,110240.0,110230.0,0.97513229]
[1748355160594,0.00442231,110240.0,110230.0,0.97513229]
[1748355160786,0.00454231,110240.0,110230.0,0.97513229]
[1748355160983,0.00454231,110240.0,110230.0,1.02053007]
[1748355161893,0.00454231,110240.0,110230.0,1.24149021]
[1748355162099,0.00454231,110240.0,110230.0,1.18021658]
[1748355162100,0.00442231,110240.0,110230.0,1.18021658]
[1748355162288,0.00442231,110240.0,110230.0,1.22021658]
[1748355162489,0.76478539,110260.0,110250.0,0.1813199]
[1748355162692,0.93348189,110260.0,110250.0,0.70296002]
[1748355162996,0.93348189,110260.0,110250.0,0.84546002]
[1748355162997,0.67806539,110260.0,110250.0,0.84546002]
[1748355163203,1.11490539,110260.0,110250.0,0.49190006]
[1748355163405,1.11478539,110260.0,110250.0,0.49190006]
[1748355163697,0.93360189,110260.0,110250.0,0.49190006]
[1748355164001,0.93460189,110260.0,110250.0,0.56200006]
[1748355164197,0.67918539,110260.0,110250.0,0.56200006]
[1748355164392,1.11586539,110260.0,110250.0,0.56200006]
[1748355164788,1.11686539,110260.0,110250.0,0.51660228]
[1748355165096,0.93556189,110260.0,110250.0,0.51660228]
[1748355165497,1.11686539,110260.0,110250.0,0.51660228]
[1748355165696,0.93556189,110260.0,110250.0,0.51660228]
[1748355165893,0.93556189,110260.0,110250.0,0.50936224]
[1748355166489,1.11686529,110260.0,110250.0,0.2891999]
[1748355167896,1.11686529,110260.0,110250.0,0.1813199]
[1748355168095,1.11686529,110260.0,110250.0,0.2891999]
[1748355169700,1.47766529,110260.0,110250.0,0.2891999]
[1748355170200,1.47766529,110260.0,110240.0,0.76496724]
[1748355170201,0.1813198,110250.0,110240.0,0.11512004]
[1748355170400,0.1813363,110240.0,110230.0,0.39813422]
[1748355170599,0.1813363,110240.0,110230.0,0.39463317]
[1748355170600,1.3067963,110240.0,110230.0,0.39463317]
[1748355170799,1.3067963,110240.0,110230.0,0.38727083]
[1748355171299,0.5094363,110240.0,110230.0,0.39463317]
[1748355171503,0.9459963,110240.0,110230.0,0.53743317]
[1748355171699,0.9461163,110240.0,110230.0,0.53743317]
[1748355172092,0.9461163,110240.0,110230.0,0.53843317]
[1748355172294,1.3069163,110240.0,110230.0,0.53843317]
[1748355173095,1.3069163,110240.0,110230.0,0.54043317]
[1748355174493,1.3069163,110240.0,110230.0,0.58584698]
[1748355174901,1.3069163,110240.0,110230.0,0.63756006]
[1748355175303,1.3069163,110240.0,110230.0,0.54043317]
[1748355175502,1.3069163,110240.0,110230.0,0.63724775]
[1748355177001,1.3069163,110240.0,110230.0,0.74095351]
[1748355178207,1.3069163,110240.0,110230.0,0.74095421]
[1748355179192,1.3069164,110240.0,110230.0,0.63724845]
[1748355179397,0.6869164,110240.0,110230.0,0.83443464]
[1748355179997,0.6867964,110240.0,110230.0,0.83443464]
[1748355180908,0.00012,110240.0,110230.0,1.14368747]
[1748355181106,0.07266189,110260.0,110250.0,0.1813199]
[1748355181309,0.99476539,110260.0,110250.0,0.18868224]
[1748355181503,0.99476539,110260.0,110250.0,0.3212199]
[1748355181504,1.50514539,110260.0,110250.0,0.3212199]
[1748355181744,1.06866539,110260.0,110250.0,0.04526594]
[1748355181906,1.50510539,110260.0,110250.0,0.04526594]
[1748355182101,1.50510539,110260.0,110250.0,0.22658584]
[1748355182309,1.56236219,110260.0,110250.0,0.22658584]
[1748355182604,1.50610539,110260.0,110250.0,0.27185593]
[1748355182805,1.56236219,110260.0,110250.0,0.27185593]
[1748355183003,1.56336219,110260.0,110250.0,0.27185593]
[1748355183908,1.85124838,110260.0,110250.0,0.04526594]
[1748355184214,0.1813199,110250.0,110240.0,0.00724057]
[1748355184508,1.33116289,110250.0,110240.0,0.00724057]
[1748355184712,1.42187089,110250.0,110240.0,0.00724057]
[1748355184898,0.1813363,110240.0,110230.0,0.28520018]
[1748355185098,1.4926363,110240.0,110230.0,0.28520018]
[1748355185504,1.4927563,110240.0,110230.0,0.28520018]
[1748355185705,1.4927563,110240.0,110230.0,0.35410018]
[1748355186015,1.1227563,110240.0,110230.0,0.35410018]
[1748355186208,1.3027563,110240.0,110230.0,0.36496436]
[1748355186413,1.3027563,110240.0,110230.0,0.29606436]
[1748355186603,1.4927563,110240.0,110230.0,0.29906436]
[1748355187603,1.4927563,110240.0,110230.0,0.28820018]
[1748355188003,1.4927563,110240.0,110230.0,0.18448809]
[1748355188493,1.4927563,110240.0,110230.0,0.25388809]
[1748355190003,1.4927563,110240.0,110230.0,0.32708809]
[1748355190511,1.4927163,110240.0,110230.0,0.32708809]
[1748355191819,1.4927163,110240.0,110230.0,0.00313629]
[1748355192014,1.68990249,110240.0,110230.0,0.00313629]
[1748355192201,1.68990249,110240.0,110230.0,0.18448909]
[1748355192513,1.4927163,110240.0,110230.0,0.18448909]
[1748355193111,1.4927163,110240.0,110230.0,0.00313629]
[1748355193308,1.4927163,110240.0,110230.0,0.18448909]
[1748355194519,1.4927163,110240.0,110230.0,0.22898397]
[1748355194520,1.0563563,110240.0,110230.0,0.22898397]
[1748355194705,1.0563563,110240.0,110230.0,0.27965066]
[1748355194706,1.4926763,110240.0,110230.0,0.27965066]
[1748355194906,1.4926763,110240.0,110230.0,0.35125066]
[1748355195208,1.4926763,110240.0,110230.0,0.27965066]
[1748355195409,1.4926763,110240.0,110230.0,0.22898397]
[1748355195910,1.4926763,110240.0,110230.0,0.04763117]
[1748355196108,1.68986249,110240.0,110230.0,0.04763117]
[1748355196309,1.68986249,110240.0,110230.0,0.00313629]
[1748355196708,1.78057849,110240.0,110230.0,0.00313629]
[1748355197804,1.88825849,110240.0,110230.0,9e-08]
[1748355198316,0.1814022,110200.0,110190.0,0.26904844]
[1748355198615,1.3184822,110200.0,110190.0,0.26904844]
[1748355198811,1.5223822,110200.0,110190.0,0.26904844]
[1748355199616,1.53148249,110200.0,110190.0,0.26904844]
[1748355200004,1.53148249,110200.0,110190.0,0.27204844]
[1748355200210,1.53148249,110200.0,110190.0,0.27604844]
[1748355200406,1.4548822,110200.0,110190.0,0.28341078]
[1748355200626,0.1814022,110200.0,110190.0,0.66986305]
[1748355200812,0.3214021,110200.0,110190.0,0.71430549]
[1748355201009,0.757682,110200.0,110190.0,0.71430549]
[1748355201208,0.757802,110200.0,110190.0,0.71430549]
[1748355201714,0.825202,110200.0,110190.0,0.71430549]
[1748355202015,0.825202,110200.0,110190.0,0.70341054]
[1748355202516,0.825202,110200.0,110190.0,0.70339717]
[1748355202716,0.825202,110200.0,110190.0,0.69616228]
[1748355202917,0.321522,110200.0,110190.0,0.69616228]
[1748355203117,0.757802,110200.0,110190.0,0.69616228]
[1748355203317,0.321522,110200.0,110190.0,1.05696228]
[1748355204218,0.14012,110200.0,110190.0,1.06419717]
[1748355204520,0.78191079,110210.0,110200.0,0.181402]
[1748355204716,0.48028079,110210.0,110200.0,0.59628819]
[1748355204919,0.91652079,110210.0,110200.0,0.6480575]
[1748355205313,0.91664079,110210.0,110200.0,0.45087131]
[1748355205716,0.91664079,110210.0,110200.0,0.45287131]
[1748355206325,0.91664079,110210.0,110200.0,0.5565834]
[1748355206717,0.91664079,110210.0,110200.0,0.60914877]
[1748355207618,0.91664079,110210.0,110200.0,0.45487131]
[1748355208010,0.98424079,110210.0,110200.0,0.45487131]
[1748355210610,0.98424079,110210.0,110200.0,0.41046434]
[1748355211019,0.98424079,110210.0,110200.0,0.41588805]
[1748355211713,0.98416079,110210.0,110200.0,0.41588805]
[1748355212120,0.91656079,110210.0,110200.0,0.41588805]
[1748355213914,0.98536079,110210.0,110200.0,0.61307424]
[1748355214125,0.98536079,110210.0,110200.0,0.41588805]
[1748355214423,0.91656079,110210.0,110200.0,0.41588805]
[1748355214624,0.91656079,110210.0,110200.0,0.61307424]
[1748355214822,0.18025629,110210.0,110200.0,0.97387424]
[1748355215014,0.00013629,110210.0,110200.0,0.98387424]
[1748355215422,0.00013629,110210.0,110200.0,1.41999424]
[1748355215718,0.00013629,110210.0,110200.0,1.50965541]
[1748355215926,0.00025629,110210.0,110200.0,1.85039541]
[1748355216224,0.00013629,110210.0,110200.0,1.62211338]
[1748355216425,0.00025629,110210.0,110200.0,1.62211338]
[1748355216627,0.00025629,110210.0,110200.0,1.18599338]
[1748355216844,0.00025629,110210.0,110200.0,1.61487849]
[1748355217022,0.2720324,110230.0,110220.0,0.181369]
[1748355217217,0.4213526,110230.0,110220.0,0.63508622]
[1748355217421,0.4213526,110230.0,110220.0,0.82282702]
[1748355217624,0.4950526,110230.0,110220.0,0.82282702]
[1748355218726,0.4950526,110230.0,110220.0,0.83006909]
[1748355218924,1.0056888,110240.0,110220.0,0.83006909]
[1748355218925,0.6890758,110250.0,110240.0,0.1813362]
[1748355219122,1.5406282,110250.0,110240.0,0.29641854]
[1748355219322,1.1045882,110250.0,110240.0,0.29641854]
[1748355219623,1.1799482,110250.0,110240.0,0.44414843]
[1748355219815,0.7439082,110250.0,110240.0,0.44414843]
[1748355220022,1.1798282,110250.0,110240.0,0.43871854]
[1748355220222,1.1799482,110250.0,110240.0,0.51184843]
[1748355220719,1.1829482,110250.0,110240.0,0.55627427]
[1748355221524,1.1829482,110250.0,110240.0,0.51184843]
[1748355221928,1.1799482,110250.0,110240.0,0.55626334]
[1748355222118,1.1799482,110250.0,110240.0,0.51184843]
[1748355222318,0.4632397,110250.0,110240.0,0.51184843]
[1748355222521,0.4631197,110250.0,110240.0,0.51184843]
[1748355222724,0.4631197,110250.0,110240.0,0.87264843]
[1748355223027,0.4631197,110250.0,110240.0,0.51184843]
[1748355223227,0.4632397,110250.0,110240.0,0.51184843]
[1748355223623,0.8991997,110250.0,110240.0,0.51184843]
[1748355224131,0.14012,110250.0,110240.0,1.06983462]
[1748355224433,0.14,110250.0,110240.0,1.07707669]
[1748355224729,0.14012,110250.0,110240.0,1.07707669]
[1748355225121,0.21362,110250.0,110240.0,1.07707669]
[1748355225322,0.21362,110250.0,110240.0,1.0716468]
[1748355225628,0.3949398,110250.0,110240.0,1.0713668]
[1748355225829,1.4824198,110250.0,110240.0,0.50420609]
[1748355226024,1.5536198,110250.0,110240.0,0.33452843]
[1748355226225,1.5536198,110250.0,110240.0,0.44196843]
[1748355226827,1.5536198,110250.0,110240.0,0.51016843]
[1748355227526,1.5536198,110250.0,110240.0,0.50473854]
[1748355228032,1.5536198,110250.0,110240.0,0.43653854]
[1748355229338,1.5536198,110250.0,110240.0,0.32909854]
[1748355229530,1.5536198,110250.0,110240.0,0.43653854]
[1748355230534,1.1177398,110250.0,110240.0,0.1813362]
[1748355230733,0.1813362,110240.0,110230.0,0.56773871]
[1748355230939,1.0205362,110240.0,110230.0,0.43770105]
[1748355231340,1.0205362,110240.0,110230.0,0.43033871]
[1748355232246,1.0205362,110240.0,110230.0,0.70248724]
[1748355232441,1.0205362,110240.0,110230.0,0.81866705]
[1748355232634,1.0205362,110240.0,110230.0,0.86920438]
[1748355232938,1.0205362,110240.0,110230.0,0.87120438]
[1748355233134,1.0205362,110240.0,110230.0,0.832248]
[1748355233436,0.6597362,110240.0,110230.0,0.82609144]
[1748355233631,0.6597362,110240.0,110230.0,0.82067342]
[1748355234033,0.6597362,110240.0,110230.0,0.81331108]
[1748355234232,0.6597362,110240.0,110230.0,0.82067342]
[1748355234835,0.6598562,110240.0,110230.0,0.82067342]
[1748355236243,0.3198562,110240.0,110230.0,0.82067342]
[1748355236443,0.3298562,110240.0,110230.0,0.82067342]
[1748355236639,0.3298562,110240.0,110230.0,0.82791549]
[1748355237639,0.3298562,110240.0,110230.0,0.77811129]
[1748355237845,0.3298562,110240.0,110230.0,0.78353471]
[1748355239845,0.3298562,110240.0,110230.0,1.14433471]
[1748355239846,0.50726,110240.0,110230.0,1.14433471]
[1748355240142,0.50714,110240.0,110230.0,1.23889261]
[1748355240344,0.50726,110240.0,110230.0,1.23889261]
[1748355240530,0.07162,110240.0,110230.0,1.23889261]
[1748355240843,0.07162,110240.0,110230.0,1.24433562]
[1748355241238,0.2529562,110240.0,110230.0,0.88353562]
[1748355241745,0.3241562,110240.0,110230.0,0.88353562]
[1748355241932,0.3241562,110240.0,110230.0,0.78152519]
[1748355242138,0.3241562,110240.0,110230.0,0.88896519]
[1748355242338,0.3241562,110240.0,110230.0,0.73731203]
[1748355242547,0.3241562,110240.0,110230.0,0.84475203]
[1748355242848,0.3241562,110240.0,110230.0,0.78897772]
[1748355243139,0.3241562,110240.0,110230.0,0.68153772]
[1748355243344,0.7532562,110240.0,110230.0,0.25427953]
[1748355243541,0.9432562,110240.0,110230.0,0.2434131]
[1748355244245,0.33282,110240.0,110230.0,0.80139929]
[1748355244433,0.76826,110240.0,110230.0,0.94149929]
[1748355244637,0.26162,110240.0,110230.0,0.93425722]
[1748355245341,0.26162,110240.0,110230.0,1.0434947]
[1748355245342,0.4429562,110240.0,110230.0,1.0434947]
[1748355245542,0.4428362,110240.0,110230.0,1.0434947]
[1748355245741,0.26162,110240.0,110230.0,1.0434947]
[1748355246047,0.7334739,110250.0,110240.0,0.1813361]
[1748355246353,0.4246197,110250.0,110240.0,1.22626257]
[1748355246857,0.4247397,110250.0,110240.0,1.21494017]
[1748355247044,0.4247397,110250.0,110240.0,1.01775398]
[1748355247249,0.4967397,110250.0,110240.0,1.02863623]
[1748355247546,0.4967397,110250.0,110240.0,1.17236128]
[1748355248137,0.4967397,110250.0,110240.0,0.97517509]
[1748355248352,0.4967397,110250.0,110240.0,1.17236128]
[1748355248850,0.4967397,110250.0,110240.0,0.61437509]
[1748355249850,0.4967397,110250.0,110240.0,0.81156128]
[1748355250347,0.24342,110250.0,110240.0,1.17236128]
[1748355250549,0.4246198,110250.0,110240.0,1.17236128]
[1748355250745,0.4952398,110250.0,110240.0,0.81156128]
[1748355252548,0.4247398,110250.0,110240.0,0.91547636]
[1748355253353,0.4916398,110250.0,110240.0,0.91547636]
[1748355254953,0.4916398,110250.0,110240.0,0.86502646]
[1748355255251,0.4916398,110250.0,110240.0,0.82072196]
[1748355256753,0.4916398,110250.0,110240.0,1.18152196]
[1748355257255,0.4916398,110250.0,110240.0,1.17063971]
[1748355257454,0.4916398,110250.0,110240.0,1.06319971]
[1748355257654,0.4916398,110250.0,110240.0,1.17035971]
[1748355258149,0.4916398,110250.0,110240.0,1.06644463]
[1748355258848,0.4916398,110250.0,110240.0,0.86925844]
[1748355259159,0.4916398,110250.0,110240.0,1.06644463]
[1748355259357,0.6516398,110250.0,110240.0,1.06644463]
[1748355259856,0.6516398,110250.0,110240.0,0.95928463]
[1748355260057,0.1813362,110240.0,110230.0,0.44425518]
[1748355260357,0.9552762,110240.0,110230.0,0.55877752]
[1748355260601,0.77394,110240.0,110230.0,0.76349372]
[1748355260759,0.77394,110240.0,110230.0,1.16868257]
[1748355260965,0.9552762,110240.0,110230.0,1.16868257]
[1748355261257,0.9553962,110240.0,110230.0,1.1696899]
[1748355262149,0.9553962,110240.0,110230.0,0.97250371]
[1748355262452,0.9553962,110240.0,110230.0,1.1706899]
[1748355264461,0.9553962,110240.0,110230.0,0.97350371]
[1748355264652,1.3876962,110240.0,110230.0,0.29577417]
[1748355264849,1.3876962,110240.0,110230.0,0.04653247]
[1748355265050,1.3876962,110240.0,110230.0,0.22788517]
[1748355265865,1.3876962,110240.0,110230.0,0.23332333]
[1748355266363,1.39676838,110240.0,110230.0,0.23232333]
[1748355267259,1.39876838,110240.0,110230.0,0.23232333]
[1748355267767,1.39876838,110240.0,110230.0,0.23132333]
[1748355268559,1.40076838,110240.0,110230.0,0.23132333]
[1748355269453,1.40076838,110240.0,110230.0,0.22586464]
[1748355269654,1.40076838,110240.0,110230.0,0.04994619]
[1748355269861,1.74507968,110240.0,110230.0,0.04451194]
[1748355270059,1.85223968,110240.0,110230.0,0.05066721]
[1748355270659,1.93685334,110240.0,110230.0,0.05066721]
[1748355271256,1.85223968,110240.0,110230.0,0.05066721]
[1748355271558,1.93685334,110240.0,110230.0,0.05066721]
[1748355271959,2.18685334,110240.0,110230.0,0.05066721]
[1748355272164,2.18685334,110240.0,110210.0,0.05803145]
[1748355272165,0.1813691,110220.0,110210.0,0.01268735]
[1748355272359,1.88523529,110220.0,110210.0,0.01268735]
[1748355272666,0.181402,110200.0,110190.0,0.01449914]
[1748355272861,1.99246819,110200.0,110190.0,0.01449914]
[1748355273063,2.28461619,110200.0,110190.0,0.01449914]
[1748355273367,0.1814184,110190.0,110180.0,0.00149756]
[1748355273567,1.0039184,110190.0,110180.0,0.00149756]
[1748355273957,1.20110459,110190.0,110180.0,0.00149756]
[1748355274165,1.21004817,110190.0,110180.0,0.00149756]
[1748355274762,1.21004817,110190.0,110180.0,0.18293256]
[1748355274962,1.30080417,110190.0,110180.0,0.00149756]
[1748355275163,1.31465329,110190.0,110180.0,0.00149756]
[1748355275565,1.31465329,110190.0,110180.0,0.00649756]
[1748355276469,1.31465329,110190.0,110180.0,0.18793256]
[1748355276667,1.0267111,110190.0,110180.0,0.18793256]
[1748355277269,1.4617911,110190.0,110180.0,0.18793256]
[1748355277471,1.4619111,110190.0,110180.0,0.25493256]
[1748355278168,1.4619111,110190.0,110180.0,0.15493256]
[1748355278368,1.4619111,110190.0,110180.0,0.22613256]
[1748355281572,1.4619111,110190.0,110180.0,0.29433256]
[1748355282072,1.0268311,110190.0,110180.0,0.29433256]
[1748355282266,1.0268311,110190.0,110180.0,0.49888109]
[1748355282267,1.0040384,110190.0,110180.0,0.49888109]
[1748355282469,1.4389984,110190.0,110180.0,0.3016949]
[1748355282870,1.4391184,110190.0,110180.0,0.3016949]
[1748355283863,1.4390784,110190.0,110180.0,0.3016949]
[1748355284106,1.0039184,110190.0,110180.0,0.49888109]
[1748355284389,1.4391184,110190.0,110180.0,0.49888109]
[1748355284572,1.4389984,110190.0,110180.0,0.49888109]
[1748355284875,1.4391184,110190.0,110180.0,0.49888109]
[1748355285078,0.9382384,110190.0,110180.0,0.49888109]
[1748355285381,0.7482384,110190.0,110180.0,0.49888109]
[1748355285569,0.5422184,110190.0,110180.0,0.49888109]
[1748355285765,0.1815384,110190.0,110180.0,0.49888109]
[1748355285970,0.43504,110190.0,110180.0,0.49888109]
[1748355286196,0.43504,110190.0,110180.0,0.3016949]
[1748355286197,0.6164585,110190.0,110180.0,0.3016949]
[1748355286371,0.9223385,110190.0,110180.0,0.50794002]
[1748355286576,0.9892385,110190.0,110180.0,0.50794002]
[1748355286769,0.6092385,110190.0,110180.0,0.49888109]
[1748355287077,0.39092,110190.0,110180.0,0.49888109]
[1748355287276,0.03012,110190.0,110180.0,0.49888109]
[1748355287478,0.1814185,110190.0,110180.0,0.49888109]
[1748355287667,0.1815385,110190.0,110180.0,0.49888109]
[1748355287974,0.00012,110190.0,110180.0,0.49888109]
[1748355288382,0.1815385,110190.0,110180.0,0.49888109]
[1748355288678,0.00012,110190.0,110180.0,0.86862488]
[1748355289084,0.1815385,110190.0,110180.0,0.86862488]
[1748355289375,0.1815385,110190.0,110180.0,0.4086549]
[1748355289376,1.3173385,110190.0,110180.0,0.4086549]
[1748355289573,1.4551385,110190.0,110180.0,0.4086549]
[1748355289774,1.4551385,110190.0,110180.0,0.32072234]
[1748355289973,1.4551385,110190.0,110180.0,0.50215734]
[1748355292968,1.4551385,110190.0,110180.0,0.39519734]
[1748355293485,1.4551385,110190.0,110180.0,0.387835]
[1748355293778,1.4551385,110190.0,110180.0,0.22195701]
[1748355295381,0.181435,110180.0,110170.0,0.37925939]
[1748355295580,1.085835,110180.0,110170.0,0.38662173]
[1748355296581,1.085835,110180.0,110170.0,0.39062173]
[1748355296772,1.085835,110180.0,110170.0,0.52822173]
[1748355296971,1.085835,110180.0,110170.0,0.59592173]
[1748355297172,0.952935,110180.0,110170.0,0.79310792]
[1748355297487,0.857015,110180.0,110170.0,0.79610792]
[1748355297706,0.17,110180.0,110170.0,0.79610792]
[1748355298179,0.17012,110180.0,110170.0,0.84628922]
[1748355298487,1.13645919,110190.0,110180.0,0.181435]
[1748355298680,1.30645919,110190.0,110180.0,0.52138353]
[1748355299667,1.30645919,110190.0,110180.0,0.52338353]
[1748355300283,1.37315919,110190.0,110180.0,0.52338353]
[1748355300482,1.37315919,110190.0,110180.0,0.002]
[1748355300483,1.53315919,110190.0,110180.0,0.002]
[1748355300684,1.73034538,110190.0,110180.0,0.002]
[1748355301187,1.73034538,110190.0,110180.0,0.004]
[1748355301376,1.78626958,110190.0,110180.0,0.004]
[1748355301983,1.58908339,110190.0,110180.0,0.004]
[1748355303283,1.67296969,110190.0,110180.0,0.004]
[1748355304982,1.67296969,110190.0,110170.0,0.05031868]
[1748355304983,0.1814349,110180.0,110170.0,0.05031868]
[1748355305180,0.1814349,110180.0,110150.0,0.12269606]
[1748355305181,0.1814679,110160.0,110150.0,0.13356656]
[1748355305380,1.90220344,110160.0,110150.0,0.12631521]
[1748355305584,2.18281615,110160.0,110150.0,0.11544471]
[1748355305777,2.28977615,110160.0,110150.0,0.11544471]
[1748355305983,2.28977615,110160.0,110150.0,0.12815027]
[1748355306186,2.28977615,110160.0,110150.0,0.12816287]
[1748355306486,2.28977615,110160.0,110150.0,0.12816649]
[1748355306687,2.28977615,110160.0,110150.0,0.11544471]
[1748355307079,2.23354344,110160.0,110150.0,0.11544471]
[1748355307283,2.48354344,110160.0,110150.0,0.1281838]
[1748355307473,2.39276344,110160.0,110150.0,0.01279484]
[1748355307684,2.48354344,110160.0,110150.0,0.01279484]
[1748355307886,0.1814843,110150.0,110140.0,0.00013629]
[1748355308086,0.9624843,110150.0,110140.0,0.01289265]
[1748355308288,1.0274843,110150.0,110140.0,0.01289265]
[1748355308593,1.04101046,110150.0,110140.0,0.01289265]
[1748355308892,1.04101046,110150.0,110140.0,0.00013629]
[1748355309191,1.04101046,110150.0,110140.0,0.01291548]
[1748355309192,1.04994462,110150.0,110140.0,0.01291548]
[1748355309391,1.04994462,110150.0,110140.0,0.01494035]
[1748355309990,1.24428016,110150.0,110140.0,0.01494035]
[1748355310197,1.24428016,110150.0,110140.0,0.01598392]
[1748355310489,1.33506817,110150.0,110140.0,0.00313629]
[1748355311289,1.33506817,110150.0,110140.0,0.0160453]
[1748355311783,1.33506817,110150.0,110140.0,0.00313629]
[1748355311985,1.76994817,110150.0,110140.0,0.00313629]
[1748355312295,1.48482462,110150.0,110140.0,0.00313629]
[1748355312488,1.48482462,110150.0,110140.0,0.00113629]
[1748355312686,1.68016016,110150.0,110140.0,0.01400573]
[1748355312888,1.68016016,110150.0,110140.0,0.00113629]
[1748355313189,1.68016016,110150.0,110140.0,0.0140045]
[1748355313389,1.48582462,110150.0,110140.0,0.00113629]
[1748355313695,1.48578462,110150.0,110140.0,0.00113629]
[1748355313904,1.48678462,110150.0,110140.0,0.00013629]
[1748355314200,1.48678462,110150.0,110140.0,0.01299852]
[1748355314379,1.48678462,110150.0,110140.0,0.01299846]
[1748355314926,1.15894462,110150.0,110140.0,0.01299846]
[1748355315198,1.59394462,110150.0,110140.0,0.00013629]
[1748355315385,1.59394462,110150.0,110140.0,0.01290466]
[1748355315590,1.59382462,110150.0,110140.0,0.01288765]
[1748355315789,1.59394462,110150.0,110140.0,0.01288765]
[1748355315997,1.59394462,110150.0,110140.0,0.00013629]
[1748355316296,1.59394462,110150.0,110140.0,0.01290159]
[1748355316603,1.59394462,110150.0,110140.0,0.00013629]
[1748355317704,1.59394462,110150.0,110140.0,0.01290101]
[1748355318586,1.59394462,110150.0,110140.0,0.01290629]
[1748355318792,1.59394462,110150.0,110140.0,0.00013629]
[1748355319089,1.59394462,110150.0,110140.0,0.01293583]
[1748355320099,1.59836693,110150.0,110140.0,0.01305932]
[1748355320288,1.59836693,110150.0,110140.0,0.01305936]
[1748355320697,1.59836693,110150.0,110140.0,0.00013629]
[1748355321292,1.59836693,110150.0,110140.0,0.0130826]
[1748355322089,1.59836693,110150.0,110140.0,0.01311243]
[1748355322295,1.59836693,110150.0,110140.0,0.01297766]
[1748355322600,1.59836693,110150.0,110140.0,0.01300422]
[1748355322801,1.79270247,110150.0,110140.0,0.01303678]
[1748355323098,1.79270247,110150.0,110140.0,0.01303735]
[1748355323500,1.79270247,110150.0,110140.0,0.0130438]
[1748355324093,1.79270247,110150.0,110140.0,0.01304427]
[1748355324293,1.79270247,110150.0,110140.0,0.01304422]
[1748355324497,1.79270247,110150.0,110140.0,9e-08]
[1748355324725,1.79270247,110150.0,110140.0,0.01304318]
[1748355324903,1.79270247,110150.0,110140.0,9e-08]
[1748355325291,0.1815007,110140.0,110130.0,0.00012]
[1748355325595,1.31243624,110140.0,110130.0,0.00012]
[1748355325802,1.1181007,110140.0,110130.0,0.00012]
[1748355328795,1.1181007,110140.0,110130.0,0.06562]
[1748355329001,1.1181007,110140.0,110130.0,0.13002]
[1748355330094,1.1181007,110140.0,110130.0,0.00012]
[1748355330295,1.31243624,110140.0,110130.0,0.00012]
[1748355330699,1.36828305,110140.0,110130.0,0.00012]
[1748355330900,1.17394751,110140.0,110130.0,0.00012]
[1748355332010,1.37153888,110140.0,110130.0,0.00012]
[1748355332303,1.46233488,110140.0,110130.0,0.00012]
[1748355332501,1.5461051,110140.0,110130.0,0.00012]
[1748355333496,1.34851373,110140.0,110130.0,0.00012]
[1748355333695,1.8902691,110140.0,110130.0,0.00012]
[1748355333890,1.25791509,110140.0,110130.0,0.19702]
[1748355334101,1.19363509,110140.0,110130.0,0.38589954]
[1748355334402,1.04366487,110140.0,110130.0,0.3785372]
[1748355334709,0.9875007,110140.0,110130.0,0.38589954]
[1748355335005,1.4225807,110140.0,110130.0,0.38589954]
[1748355335303,1.47850487,110140.0,110130.0,0.38589954]
[1748355335503,1.04366487,110140.0,110130.0,0.38589954]
[1748355335707,1.47862487,110140.0,110130.0,0.38589954]
[1748355335901,1.47862487,110140.0,110130.0,0.52457447]
[1748355336108,1.48292718,110140.0,110130.0,0.52457447]
[1748355336304,1.48304718,110140.0,110130.0,0.52457447]
[1748355336603,1.41784718,110140.0,110130.0,0.52457447]
[1748355337106,1.48424718,110140.0,110130.0,0.47792074]
[1748355338008,1.48424718,110140.0,110130.0,0.49089551]
[1748355338209,1.48424718,110140.0,110130.0,0.13150415]
[1748355338402,1.48424718,110140.0,110130.0,0.13134764]
[1748355338604,1.48424718,110140.0,110130.0,0.13135743]
[1748355338911,1.48424718,110140.0,110130.0,0.31287806]
[1748355339101,1.48424718,110140.0,110130.0,0.30004658]
[1748355339299,1.04928718,110140.0,110130.0,0.31281523]
[1748355339499,0.62196718,110140.0,110130.0,0.41965523]
[1748355339707,0.56604301,110140.0,110130.0,0.89551816]
[1748355340003,0.33592301,110140.0,110130.0,1.14551816]
[1748355340205,0.14717997,110140.0,110130.0,1.23256331]
[1748355340409,0.05618046,110150.0,110140.0,0.1815008]
[1748355340601,0.08513331,110160.0,110150.0,0.1814843]
[1748355340802,0.08513331,110160.0,110150.0,1.18354708]
[1748355340998,0.05263331,110160.0,110150.0,1.57999324]
[1748355341205,0.00012,110160.0,110150.0,1.63314376]
[1748355341398,0.33763209,110180.0,110150.0,1.39720029]
[1748355341598,0.29294648,110180.0,110170.0,0.54768654]
[1748355341810,0.11149908,110180.0,110170.0,0.84894932]
[1748355342011,0.00013629,110180.0,110170.0,2.23495522]
[1748355342213,0.00025629,110180.0,110170.0,2.23495522]
[1748355342510,0.30851998,110200.0,110190.0,0.1814184]
[1748355342814,0.30851998,110200.0,110190.0,0.6490584]